fUST/lending_fUST_20250831
["ID","MTS","AMOUNT","RATE_DAILY","PERIOD"]
[382470076,1756638650817,-481.5065541,0.00018003,2]
[382470077,1756638650826,-1949.26,0.00018003,2]
[382470078,1756638650835,-480.0,0.00018003,2]
[382470079,1756638650844,-480.0,0.00018003,2]
[382470080,1756638650854,-480.0,0.00018003,2]
[382470081,1756638650863,-1693.91,0.00018003,2]
[382470082,1756638650873,-480.0,0.00018003,2]
[382470083,1756638650883,-1562.44,0.00018003,2]
[382470084,1756638650892,-555.57,0.00018003,2]
[382470085,1756638650901,-480.0,0.00018003,2]
[382470086,1756638650911,-480.0,0.00018003,2]
[382470087,1756638650920,-480.0,0.00018003,2]
[382470088,1756638650929,-200.0,0.00018003,3]
[382470089,1756638650939,-200.0,0.00018003,3]
[382470090,1756638650949,-200.0,0.00018003,3]
[382470091,1756638650961,-200.0,0.00018003,3]
[382470092,1756638650971,-200.0,0.00018003,3]
[382470093,1756638650980,-638.49,0.00018003,2]
[382470094,1756638650990,-887.51,0.00018003,2]
[382470095,1756638651001,-480.0,0.00018003,2]
[382470096,1756638651010,-847.23,0.00018003,2]
[382470097,1756638651018,-480.0,0.00018003,2]
[382470098,1756638651028,-719.25,0.00018003,2]
[382470099,1756638651038,-721.32,0.00018003,2]
[382470100,1756638651047,-1464.13,0.00018003,2]
[382470101,1756638651057,-1569.43,0.00018003,2]
[382470102,1756638651068,-480.0,0.00018003,2]
[382470103,1756638651077,-1642.79,0.00018003,2]
[382470105,1756638651087,-1455.08,0.00018003,2]
[382470106,1756638651097,-567.43,0.00018003,2]
[382470107,1756638651106,-480.0,0.00018003,2]
[382470108,1756638651116,-832.31,0.00018003,2]
[382470109,1756638651126,-1068.87,0.00018003,2]
[382470110,1756638651135,-480.0,0.00018003,2]
[382470111,1756638651144,-1233.48,0.00018003,2]
[382470112,1756638651154,-706.43,0.00018003,2]
[382470113,1756638651163,-480.0,0.00018003,2]
[382470114,1756638651173,-151.0,0.00018003,2]
[382470115,1756638651182,-480.0,0.00018003,2]
[382470116,1756638651192,-500.74,0.00018003,2]
[382470117,1756638651201,-260.86270022,0.00018003,2]
[382470118,1756638651211,-504.98,0.00018003,2]
[382470119,1756638651220,-727.79,0.00018003,2]
[382470120,1756638651229,-2898.88,0.00018003,2]
[382470121,1756638651239,-1737.4,0.00018003,2]
[382470122,1756638651250,-151.0,0.00018003,2]
[382470123,1756638651260,-151.0,0.00018003,2]
[382470124,1756638651270,-480.0,0.00018003,2]
[382470125,1756638651279,-481.3470306,0.00018003,2]
[382470126,1756638651288,-740.8,0.00018003,2]
[382470127,1756638651298,-151.0,0.00018003,2]
[382470128,1756638651307,-151.0,0.00018003,2]
[382470129,1756638651318,-930.35,0.00018003,2]
[382470130,1756638651327,-1853.64,0.00018003,2]
[382470131,1756638651337,-590.8,0.00018003,2]
[382470132,1756638651346,-794.31,0.00018003,2]
[382470133,1756638651355,-151.0,0.00018003,2]
[382470134,1756638651364,-652.143732,0.00018003,2]
[382470135,1756638651374,-652.143732,0.00018003,2]
[382470136,1756638651383,-151.0,0.00018003,2]
[382470137,1756638651393,-652.143732,0.00018003,2]
[382470138,1756638651402,-480.0,0.00018004,2]
[382470139,1756638651412,-690.49,0.00018004,2]
[382470140,1756638651421,-480.0,0.00018004,2]
[382470141,1756638651431,-436.0650664,0.00018004,2]
[382470142,1756638651440,-700.24,0.00018004,2]
[382470143,1756638651449,-480.0,0.00018004,2]
[382470144,1756638651459,-480.0,0.00018004,2]
[382470145,1756638651468,-480.0,0.00018004,2]
[382470146,1756638651477,-480.0,0.00018004,2]
[382470147,1756638651487,-480.0,0.00018004,2]
[382470148,1756638651497,-480.0,0.00018004,2]
[382470149,1756638651506,-480.0,0.00018004,2]
[382470150,1756638651516,-1711.74,0.00018004,2]
[382470151,1756638651526,-480.0,0.00018004,2]
[382470152,1756638651535,-480.0,0.00018004,2]
[382470153,1756638651545,-599.79,0.00018004,2]
[382470154,1756638651554,-480.0,0.00018004,2]
[382470155,1756638651564,-485.31157402,0.00018004,2]
[382470156,1756638651573,-738.36,0.00018004,2]
[382470157,1756638651584,-480.0,0.00018004,2]
[382470158,1756638651593,-480.0,0.00018004,2]
[382470159,1756638651602,-480.0,0.00018004,2]
[382470160,1756638651612,-512.56,0.00018004,2]
[382470161,1756638651621,-535.44,0.00018004,2]
[382470162,1756638651630,-484.91050785,0.00018004,2]
[382470163,1756638651640,-1485.55,0.00018004,2]
[382470164,1756638651649,-1225.05,0.00018004,2]
[382470165,1756638651659,-501.86,0.00018004,2]
[382470166,1756638651668,-768.31,0.00018004,2]
[382470167,1756638651678,-480.0,0.00018004,2]
[382470168,1756638651687,-1720.19,0.00018004,2]
[382470169,1756638651826,-480.0,0.00018004,2]
[382470170,1756638651836,-480.0,0.00018004,2]
[382470171,1756638651847,-480.32030878,0.00018004,2]
[382470172,1756638651858,-858.19,0.00018004,2]
[382470173,1756638651867,-674.79,0.00018004,2]
[382470174,1756638651877,-480.0,0.00018004,2]
[382470175,1756638651887,-673.45,0.00018004,2]
[382470176,1756638651896,-480.0,0.00018004,2]
[382470177,1756638651906,-480.94,0.00018004,2]
[382470178,1756638651915,-480.0,0.00018004,2]
[382470179,1756638651923,-480.0,0.00018004,2]
[382470180,1756638651931,-481.09469984,0.00018004,2]
[382470181,1756638651940,-480.0,0.00018004,2]
[382470182,1756638651950,-1845.48,0.00018004,2]
[382470183,1756638651966,-480.0,0.00018004,2]
[382470184,1756638651976,-151.0,0.00018004,2]
[382470185,1756638651986,-480.0,0.00018004,2]
[382470186,1756638651996,-151.0,0.00018004,2]
[382470187,1756638652006,-151.0,0.00018004,2]
[382470188,1756638652015,-480.0,0.00018004,2]
[382470189,1756638652026,-481.12814767,0.00018004,2]
[382470190,1756638652036,-312.43713229,0.00018004,2]
[382470191,1756638652046,-480.0,0.00018004,2]
[382470192,1756638652055,-1734.94,0.00018004,2]
[382470193,1756638652065,-480.0,0.00018004,2]
[382470194,1756638652074,-502.79,0.00018004,2]
[382470195,1756638652084,-480.0,0.00018004,2]
[382470196,1756638652094,-185.876676,0.00018004,2]
[382470197,1756638652104,-185.876676,0.00018004,2]
[382470198,1756638652114,-185.876676,0.00018004,2]
[382470199,1756638652123,-185.876676,0.00018004,2]
[382470200,1756638652132,-151.55384,0.00018004,2]
[382470201,1756638652143,-480.0,0.00018004,2]
[382470202,1756638652152,-480.0,0.00018004,2]
[382470203,1756638652163,-480.0,0.00018004,2]
[382470204,1756638652172,-151.123548,0.00018004,2]
[382470205,1756638652183,-279.29495814,0.00018004,2]
[382470206,1756638652193,-585.28,0.00018004,2]
[382470207,1756638652203,-480.0,0.00018004,2]
[382470208,1756638652213,-480.0,0.00018004,2]
[382470209,1756638652223,-186.55579662,0.00018004,2]
[382470210,1756638652232,-480.0,0.00018004,2]
[382470211,1756638652242,-480.0,0.00018004,2]
[382470212,1756638652251,-480.0,0.00018004,2]
[382470213,1756638652262,-480.0,0.00018004,2]
[382470214,1756638652271,-480.0,0.00018004,2]
[382470215,1756638652280,-151.0,0.00018004,2]
[382470216,1756638652289,-1033.69,0.00018004,2]
[382470217,1756638652298,-534.67,0.00018004,2]
[382470218,1756638652308,-225.188496,0.00018004,2]
[382470219,1756638652317,-480.0,0.00018004,2]
[382470220,1756638652326,-151.0,0.00018004,2]
[382470221,1756638652335,-480.0,0.00018004,2]
[382470222,1756638652344,-480.0,0.00018004,2]
[382470223,1756638652353,-151.0,0.00018004,2]
[382470224,1756638652362,-480.0,0.00018004,2]
[382470225,1756638652371,-880.48,0.00018004,2]
[382470226,1756638652380,-480.0,0.00018004,2]
[382470227,1756638652389,-480.0,0.00018004,2]
[382470228,1756638652398,-480.0,0.00018004,2]
[382470229,1756638652407,-480.0,0.00018004,2]
[382470230,1756638652416,-480.0,0.00018004,2]
[382470231,1756638652425,-555.84,0.00018004,2]
[382470232,1756638652435,-480.0,0.00018004,2]
[382470233,1756638652445,-480.0,0.00018004,2]
[382470234,1756638652455,-923.92,0.00018004,2]
[382470235,1756638652464,-151.0,0.00018004,2]
[382470236,1756638652474,-410.49221079,0.00018004,2]
[382470237,1756638652484,-1000.0,0.00018004,2]
[382470238,1756638652493,-480.0,0.00018004,2]
[382470239,1756638652502,-510.7510522,0.00018004,2]
[382470240,1756638652512,-481.78518685,0.00018004,2]
[382470241,1756638652522,-480.0,0.00018004,2]
[382470242,1756638652531,-1129.79,0.00018004,2]
[382470243,1756638652541,-538.7,0.00018004,2]
[382470244,1756638652550,-480.0,0.00018004,2]
[382470245,1756638652560,-480.0,0.00018004,2]
[382470246,1756638652569,-480.0,0.00018004,2]
[382470247,1756638652578,-480.0,0.00018004,2]
[382470248,1756638652587,-480.0,0.00018004,2]
[382470249,1756638652596,-480.0,0.00018004,2]
[382470250,1756638652606,-586.76,0.00018004,2]
[382470251,1756638652615,-1587.95,0.00018004,2]
[382470252,1756638652625,-480.0,0.00018004,2]
[382470253,1756638652635,-770.34,0.00018004,2]
[382470254,1756638652645,-789.46,0.00018004,2]
[382470255,1756638652655,-703.32,0.00018004,2]
[382470256,1756638652664,-480.0,0.00018004,2]
[382470257,1756638652673,-480.0,0.00018004,2]
[382470258,1756638652683,-480.0,0.00018004,2]
[382470259,1756638652692,-759.74,0.00018004,2]
[382470260,1756638652701,-480.0,0.00018004,2]
[382470261,1756638652710,-480.0,0.00018004,2]
[382470262,1756638652719,-297.60048262,0.00018004,2]
[382470263,1756638652728,-1551.5,0.00018004,2]
[382470264,1756638652737,-480.0,0.00018004,2]
[382470265,1756638652746,-480.0,0.00018004,2]
[382470266,1756638652755,-480.0,0.00018004,2]
[382470267,1756638652765,-480.0,0.00018004,2]
[382470268,1756638652774,-480.0,0.00018004,2]
[382470269,1756638652783,-480.0,0.00018004,2]
[382470270,1756638652792,-480.0,0.00018004,2]
[382470271,1756638652801,-480.0,0.00018004,2]
[382470272,1756638652810,-480.0,0.00018004,2]
[382470273,1756638652819,-480.0,0.00018004,2]
[382470274,1756638652828,-1550.77,0.00018004,2]
[382470275,1756638652839,-480.0,0.00018004,2]
[382470276,1756638652849,-175.10694815,0.00018004,2]
[382470277,1756638652858,-480.0,0.00018004,2]
[382470278,1756638652869,-480.0,0.00018004,2]
[382470279,1756638652878,-480.0,0.00018004,2]
[382470280,1756638652887,-607.24,0.00018004,2]
[382470281,1756638652896,-480.0,0.00018004,2]
[382470282,1756638652906,-572.76,0.00018004,2]
[382470283,1756638652916,-480.0,0.00018004,2]
[382470284,1756638652925,-571.99,0.00018004,2]
[382470285,1756638652935,-836.71,0.00018004,2]
[382470286,1756638652944,-324.0913876,0.00018004,2]
[382470287,1756638652956,-480.0,0.00018004,2]
[382470288,1756638652965,-480.0,0.00018004,2]
[382470289,1756638652975,-480.0,0.00018004,2]
[382470290,1756638652985,-519.29,0.00018004,2]
[382470291,1756638652994,-481.29,0.00018004,2]
[382470292,1756638653003,-480.0,0.00018004,2]
[382470293,1756638653012,-881.51,0.00018004,2]
[382470294,1756638653021,-572.28,0.00018004,2]
[382470295,1756638653031,-480.0,0.00018004,2]
[382470296,1756638653040,-480.0,0.00018004,2]
[382470297,1756638653049,-480.0,0.00018004,2]
[382470298,1756638653059,-480.0,0.00018004,2]
[382470299,1756638653069,-480.0,0.00018004,2]
[382470300,1756638653078,-480.0,0.00018004,2]
[382470301,1756638653087,-581.67,0.00018004,2]
[382470302,1756638653097,-480.0,0.00018004,2]
[382470303,1756638653106,-675.39,0.00018004,2]
[382470304,1756638653115,-503.8,0.00018004,2]
[382470305,1756638653125,-480.0,0.00018004,2]
[382470306,1756638653135,-1003.54527382,0.00018004,2]
[382470307,1756638653144,-480.0,0.00018004,2]
[382470308,1756638653154,-480.0,0.00018004,2]
[382470309,1756638653163,-500.0,0.00018004,2]
[382470310,1756638653172,-480.0,0.00018004,2]
[382470311,1756638653182,-480.0,0.00018004,2]
[382470312,1756638653193,-480.0,0.00018004,2]
[382470313,1756638653202,-480.0,0.00018004,2]
[382470314,1756638653211,-966.64,0.00018004,2]
[382470315,1756638653221,-480.0,0.00018004,2]
[382470316,1756638653230,-480.0,0.00018004,2]
[382470317,1756638653239,-480.0,0.00018004,2]
[382470318,1756638653248,-480.0,0.00018004,2]
[382470319,1756638653258,-867.44,0.00018004,2]
[382470320,1756638653267,-480.0,0.00018004,2]
[382470321,1756638653277,-480.0,0.00018004,2]
[382470322,1756638653286,-480.0,0.00018004,2]
[382470323,1756638653295,-480.0,0.00018004,2]
[382470324,1756638653304,-480.73,0.00018004,2]
[382470325,1756638653313,-405.51587298,0.00018004,2]
[382470326,1756638653322,-659.58,0.00018004,2]
[382470327,1756638653331,-13704.06711517,0.00018025,2]
[382470328,1756638653341,-4597.35363025,0.00018044,2]
[382470329,1756638653350,-242.0,0.00018067,2]
[382470330,1756638653359,-168.0,0.00018072,2]
[382470331,1756638653369,-341.9881509,0.00018082,2]
[382470332,1756638653379,-151.0,0.00018091,2]
[382470333,1756638653388,-151.0,0.00018091,2]
[382470334,1756638653397,-151.0,0.00018091,2]
[382470335,1756638653406,-151.0,0.00018091,2]
[382470336,1756638653417,-693.0,0.00018091,2]
[382470337,1756638653426,-151.0,0.000181,2]
[382470338,1756638653435,-151.0,0.00018103,2]
[382470339,1756638653444,-151.0,0.00018104,2]
[382470340,1756638653454,-151.0,0.00018104,2]
[382470341,1756638653463,-151.0,0.00018104,2]
[382470342,1756638653472,-200.64869876,0.00018104,2]
[382470343,1756638653482,-4682.5,0.00018104,2]
[382470344,1756638653491,-945.94,0.00018104,2]
[382470345,1756638653500,-2273.44,0.00018104,2]
[382470346,1756638653510,-2385.19,0.00018104,2]
[382470347,1756638653519,-480.0,0.00018104,2]
[382470348,1756638653529,-984.47,0.00018104,2]
[382470349,1756638653539,-4607.93,0.00018104,2]
[382470350,1756638653548,-6863.46,0.00018104,2]
[382470351,1756638653557,-882.2,0.00018104,2]
[382470352,1756638653566,-298.752792,0.00018104,2]
[382470353,1756638653575,-1473.14,0.00018104,2]
[382470354,1756638653584,-2155.02,0.00018104,2]
[382470355,1756638653593,-480.0,0.00018104,2]
[382470356,1756638653602,-2642.58,0.00018104,2]
[382470357,1756638653611,-1092.28,0.00018104,2]
[382470358,1756638653621,-480.0,0.00018105,2]
[382470359,1756638653630,-480.0,0.00018105,2]
[382470360,1756638653639,-414.47149648,0.00018105,2]
[382470361,1756638653648,-480.0,0.00018105,2]
[382470362,1756638653657,-438.11780381,0.00018105,2]
[382470363,1756638653666,-480.0,0.00018105,2]
[382470364,1756638653675,-480.0,0.00018105,2]
[382470365,1756638653684,-192.47779192,0.00018105,2]
[382470366,1756638653693,-480.0,0.00018105,2]
[382470367,1756638653703,-1260.41,0.00018105,2]
[382470368,1756638653712,-480.0,0.00018105,2]
[382470369,1756638653721,-480.0,0.00018105,2]
[382470370,1756638653731,-480.0,0.00018105,2]
[382470371,1756638653740,-480.0,0.00018105,2]
[382470372,1756638653750,-480.0,0.00018105,2]
[382470373,1756638653759,-480.0,0.00018105,2]
[382470374,1756638653769,-480.0,0.00018105,2]
[382470375,1756638653778,-585.94518367,0.00018105,2]
[382470376,1756638653787,-564.21,0.00018105,2]
[382470377,1756638653796,-480.0,0.00018105,2]
[382470378,1756638653806,-480.0,0.00018105,2]
[382470379,1756638653816,-1079.7,0.00018105,2]
[382470380,1756638653825,-480.0,0.00018105,2]
[382470381,1756638653834,-480.0,0.00018105,2]
[382470382,1756638653844,-561.96,0.00018105,2]
[382470383,1756638653854,-480.0,0.00018105,2]
[382470384,1756638653863,-480.0,0.00018105,2]
[382470385,1756638653873,-480.0,0.00018105,2]
[382470386,1756638654010,-582.99,0.00018105,2]
[382470387,1756638654020,-480.0,0.00018105,2]
[382470388,1756638654031,-480.64942555,0.00018105,2]
[382470389,1756638654040,-480.0,0.00018105,2]
[382470390,1756638654049,-500.0,0.00018105,2]
[382470391,1756638654058,-480.0,0.00018105,2]
[382470392,1756638654068,-599.56,0.00018105,2]
[382470393,1756638654077,-158.27277284,0.00018105,2]
[382470394,1756638654087,-480.0,0.00018105,2]
[382470395,1756638654097,-754.46,0.00018105,2]
[382470396,1756638654106,-567.37918417,0.00018105,2]
[382470397,1756638654116,-480.0,0.00018105,2]
[382470398,1756638654125,-480.0,0.00018105,2]
[382470399,1756638654136,-921.53,0.00018105,2]
[382470400,1756638654146,-567.95,0.00018105,2]
[382470401,1756638654155,-694.9,0.00018105,2]
[382470402,1756638654165,-151.0,0.00018105,2]
[382470403,1756638654175,-1628.45,0.00018105,2]
[382470404,1756638654184,-481.39767338,0.00018105,2]
[382470405,1756638654194,-151.0,0.00018105,2]
[382470406,1756638654203,-910.94,0.00018105,2]
[382470407,1756638654213,-620.5,0.00018105,2]
[382470408,1756638654222,-480.0,0.00018105,2]
[382470409,1756638654232,-480.0,0.00018105,2]
[382470410,1756638654241,-480.0,0.00018105,2]
[382470411,1756638654251,-1359.56,0.00018105,2]
[382470412,1756638654261,-151.0,0.00018105,2]
[382470413,1756638654271,-151.0,0.00018105,2]
[382470414,1756638654281,-293.103662,0.00018105,2]
[382470415,1756638654291,-480.0,0.00018105,2]
[382470416,1756638654301,-656.14,0.00018105,2]
[382470417,1756638654310,-480.0,0.00018105,2]
[382470418,1756638654319,-480.0,0.00018105,2]
[382470419,1756638654329,-185.876676,0.00018105,2]
[382470420,1756638654339,-185.876676,0.00018105,2]
[382470421,1756638654348,-185.876676,0.00018105,2]
[382470422,1756638654357,-185.876676,0.00018105,2]
[382470423,1756638654367,-480.0,0.00018105,2]
[382470424,1756638654376,-480.0,0.00018105,2]
[382470425,1756638654385,-480.0,0.00018105,2]
[382470426,1756638654395,-487.56151785,0.00018105,2]
[382470427,1756638654404,-480.0,0.00018105,2]
[382470428,1756638654414,-1733.66,0.00018105,2]
[382470429,1756638654424,-480.0,0.00018105,2]
[382470430,1756638654433,-762.83,0.00018105,2]
[382470431,1756638654443,-151.0,0.00018105,2]
[382470432,1756638654452,-151.0,0.00018105,2]
[382470433,1756638654462,-151.0,0.00018105,2]
[382470434,1756638654472,-501.15,0.00018105,2]
[382470435,1756638654481,-642.22,0.00018105,2]
[382470436,1756638654491,-480.0,0.00018105,2]
[382470437,1756638654500,-480.0,0.00018105,2]
[382470438,1756638654509,-481.7167146,0.00018105,2]
[382470439,1756638654519,-1223.71,0.00018105,2]
[382470440,1756638654528,-715.88,0.00018105,2]
[382470441,1756638654538,-188.33928,0.00018105,2]
[382470442,1756638654548,-574.82,0.00018105,2]
[382470443,1756638654557,-1688.46,0.00018105,2]
[382470444,1756638654567,-831.83,0.00018105,2]
[382470445,1756638654577,-858.4,0.00018105,2]
[382470446,1756638654586,-496.54,0.00018105,2]
[382470447,1756638654595,-480.0,0.00018105,2]
[382470448,1756638654604,-480.0,0.00018105,2]
[382470449,1756638654614,-586.48,0.00018105,2]
[382470450,1756638654623,-1076.16,0.00018105,2]
[382470451,1756638654633,-480.0,0.00018105,2]
[382470452,1756638654641,-480.0,0.00018105,2]
[382470453,1756638654651,-480.0,0.00018105,2]
[382470454,1756638654659,-961.35,0.00018105,2]
[382470455,1756638654668,-1399.32,0.00018105,2]
[382470456,1756638654678,-480.0,0.00018105,2]
[382470457,1756638654688,-580.87,0.00018105,2]
[382470458,1756638654697,-1317.7,0.00018105,2]
[382470459,1756638654706,-480.0,0.00018105,2]
[382470460,1756638654716,-872.85,0.00018105,2]
[382470461,1756638654725,-480.0,0.00018105,2]
[382470462,1756638654735,-480.0,0.00018105,2]
[382470463,1756638654745,-480.0,0.00018105,2]
[382470464,1756638654756,-504.7,0.00018105,2]
[382470465,1756638654770,-1284.0,0.00018105,2]
[382470466,1756638654790,-106.65661067,0.00018105,2]
[382470467,1756638656526,-124.02323237,0.0001762,2]
[382470468,1756638657644,-26.97676763,0.0001762,2]
[382470469,1756638657655,-480.0,0.00017629,2]
[382470470,1756638657665,-200.0,0.0001763,10]
[382470471,1756638657674,-200.0,0.0001763,10]
[382470472,1756638657684,-200.0,0.0001763,10]
[382470473,1756638657693,-200.0,0.0001763,10]
[382470474,1756638657702,-200.0,0.0001763,10]
[382470475,1756638657712,-200.0,0.0001763,10]
[382470476,1756638657721,-200.0,0.0001763,10]
[382470477,1756638657730,-200.0,0.0001763,10]
[382470478,1756638657740,-200.0,0.0001763,10]
[382470479,1756638657749,-200.0,0.0001763,10]
[382470480,1756638657758,-200.0,0.0001763,10]
[382470481,1756638657767,-200.0,0.0001763,10]
[382470482,1756638657776,-200.0,0.0001763,10]
[382470483,1756638657785,-200.0,0.0001763,10]
[382470484,1756638657794,-200.0,0.0001763,10]
[382470485,1756638657803,-480.0,0.0001763,2]
[382470486,1756638657811,-200.0,0.0001763,10]
[382470487,1756638657820,-200.0,0.0001763,10]
[382470488,1756638657829,-200.0,0.0001763,10]
[382470489,1756638657838,-200.0,0.0001763,10]
[382470490,1756638657847,-200.0,0.0001763,10]
[382470491,1756638657856,-200.0,0.0001763,10]
[382470492,1756638657864,-200.0,0.0001763,10]
[382470493,1756638657873,-200.0,0.0001763,10]
[382470494,1756638657883,-254.252658,0.00017816,2]
[382470495,1756638657891,-206.20675,0.00017816,2]
[382470496,1756638657900,-206.20675,0.00017816,2]
[382470497,1756638657909,-206.20675,0.00017816,2]
[382470498,1756638657918,-206.20675,0.00017816,2]
[382470499,1756638657927,-652.143732,0.0001783,2]
[382470500,1756638657935,-206.20675,0.0001783,2]
[382470501,1756638657944,-206.20675,0.0001783,2]
[382470502,1756638657954,-206.20675,0.0001783,2]
[382470503,1756638657965,-1452.63236824,0.00017902,2]
[382470505,1756638736611,669.085759,0.00013699,2]
[382470506,1756638738360,-295.20917277,0.00017529,2]
[382470507,1756638738708,666.0,0.0001663,2]
[382470508,1756638739892,-160.78583715,0.00017529,2]
[382470509,1756638742109,-213.20480895,0.00017529,2]
[382470510,1756638745035,-480.0,0.00017529,2]
[382470511,1756638746581,-172.3908357,0.00017529,2]
[382470512,1756638749245,-243.0835589,0.00017529,2]
[382470513,1756638751134,480.0,0.000175,2]
[382470514,1756638754156,-217.85880027,0.00017528,2]
[382470515,1756638754182,-206.44681933,0.00017529,2]
[382470516,1756638756628,-504.87141545,0.00017529,2]
[382470517,1756638758335,-214.09981212,0.00017529,2]
[382470518,1756638759005,365.4732121,0.00016629,2]
[382470519,1756638760517,-151.56897983,0.00017529,2]
[382470520,1756638762116,-152.19350763,0.00017529,2]
[382470521,1756638764763,-286.02769626,0.00017529,2]
[382470522,1756638768062,-276.7311791,0.00017529,2]
[382470523,1756638770277,-350.15358644,0.00017529,2]
[382470524,1756638773658,-240.53584913,0.00017529,2]
[382470525,1756638776512,-249.28840296,0.00017529,2]
[382470526,1756638781863,-212.46557286,0.00017529,2]
[382470527,1756638783554,-337.43046757,0.00017529,2]
[382470528,1756638789446,-151.0,0.00017528,2]
[382470529,1756638791634,-149.0,0.00017528,2]
[382470530,1756638791657,-15.22852076,0.00017529,2]
[382470531,1756638793793,-168.0,0.00017529,2]
[382470532,1756638796533,-216.20289512,0.00017529,2]
[382470533,1756638798145,-226.81347349,0.00017529,2]
[382470534,1756638802069,-304.70587043,0.00017529,2]
[382470535,1756638803730,-225.21412797,0.00017529,2]
[382470536,1756638805564,-175.23044524,0.00017529,2]
[382470537,1756638808319,-187.49038957,0.00017529,2]
[382470538,1756638809456,9634.5367879,0.00016629,2]
[382470539,1756638809478,365.4632121,0.00016629,2]
[382470540,1756638811562,-224.66406432,0.00017529,2]
[382470541,1756638814136,-184.14022656,0.00017529,10]
[382470542,1756638816516,-15.85977344,0.00017529,10]
[382470543,1756638816537,-200.0,0.00017529,10]
[382470544,1756638816558,-116.15747977,0.00017529,10]
[382470545,1756638819315,-83.84252023,0.00017529,10]
[382470546,1756638819339,-200.0,0.00017529,10]
[382470547,1756638819361,-5.17708518,0.00017529,10]
[382470548,1756638821939,-194.82291482,0.00017529,10]
[382470549,1756638821972,-50.9155883,0.00017529,10]
[382470550,1756638825438,-149.0844117,0.00017529,10]
[382470551,1756638825467,-10.9155883,0.00017529,10]
[382470552,1756638827309,-186.46619842,0.00017529,10]
[382470553,1756638829082,-2.61821328,0.00017529,10]
[382470554,1756638829108,-178.37004141,0.00017529,10]
[382470555,1756638830569,-21.62995859,0.00017529,10]
[382470556,1756638830598,-200.0,0.00017529,10]
[382470557,1756638830627,-150.60414434,0.00017529,10]
[382470558,1756638833771,-49.39585566,0.00017529,10]
[382470559,1756638833795,-125.14096722,0.00017529,10]
[382470560,1756638838043,277.0883351,8.314e-05,2]
[382470561,1756638838478,1608.98348745,0.000175,2]
[382470562,1756638838504,-74.85903278,0.00017529,10]
[382470563,1756638838527,-200.0,0.00017529,10]
[382470564,1756638838551,-84.59423305,0.00017529,10]
[382470565,1756638841017,-115.40576695,0.00017529,10]
[382470566,1756638841039,-106.47770118,0.00017529,10]
[382470567,1756638843120,-137.99027782,0.00017529,10]
[382470568,1756638843145,-21.50136463,0.00017529,2]
[382470569,1756638844706,-191.38124444,0.00017528,2]
[382470570,1756638847629,-108.61875556,0.00017528,2]
[382470571,1756638847652,-415.21925135,0.00017529,2]
[382470572,1756638849684,-154.28168867,0.00017529,2]
[382470573,1756638851214,-210.33691448,0.00017529,2]
[382470574,1756638855521,-284.90876191,0.00017528,2]
[382470575,1756638857647,-36.05596167,0.00017528,2]
[382470576,1756638857668,-266.59370059,0.00017529,2]
[382470577,1756638860190,-268.1740201,0.00017529,2]